[Event "Titled Tuesday Blitz August 17 2021"]
[White "Maze, Sebastien"]
[Black "Bortnyk, Olexandr"]
[WhiteFideId "613762"]
[BlackFideId "14120828"]
[WhiteElo "2462"]
[BlackElo "2723"]
[Result "1-0"]
[Round "05"]
[TimeControl "180+1"]
[Date "2021.08.17"]
[WhiteClock "0:00:04"]
[BlackClock "0:00:04"]

1. e4 {[%clk 0:03:00]}  Nf6 {[%clk 0:02:59]} 2. e5 {[%clk 0:02:59]}  Nd5 {[%clk 0:02:59]} 3. d4 {[%clk 0:02:59]}  d6 {[%clk 0:03:00]} 4. c4 {[%clk 0:03:00]}  Nb6 {[%clk 0:02:59]} 5. exd6 {[%clk 0:03:01]}  exd6 {[%clk 0:03:00]} 6. Nc3 {[%clk 0:03:00]}  Be7 {[%clk 0:03:01]} 7. Bd3 {[%clk 0:02:59]}  O-O {[%clk 0:03:01]} 8. Nge2 {[%clk 0:02:59]}  Bg4 {[%clk 0:03:02]} 9. f3 {[%clk 0:02:57]}  Bh4+ {[%clk 0:03:01]} 10. Kf1 {[%clk 0:02:45]}  Bh5 {[%clk 0:03:00]} 11. Nf4 {[%clk 0:02:32]}  Bg6 {[%clk 0:02:59]} 12. Nxg6 {[%clk 0:02:31]}  fxg6 {[%clk 0:02:57]} 13. Be3 {[%clk 0:02:31]}  Nc6 {[%clk 0:02:54]} 14. Qd2 {[%clk 0:02:30]}  Kh8 {[%clk 0:02:35]} 15. b3 {[%clk 0:02:28]}  Qf6 {[%clk 0:02:29]} 16. Be4 {[%clk 0:02:19]}  Rae8 {[%clk 0:02:18]} 17. Rg1 {[%clk 0:01:40]}  Qf7 {[%clk 0:01:29]} 18. g3 {[%clk 0:01:32]}  Bd8 {[%clk 0:01:15]} 19. Bf2 {[%clk 0:01:08]}  Rxe4 {[%clk 0:00:56]} 20. Nxe4 {[%clk 0:01:06]}  Qxf3 {[%clk 0:00:56]} 21. Re1 {[%clk 0:00:51]}  d5 {[%clk 0:00:56]} 22. cxd5 {[%clk 0:00:44]}  Nxd5 {[%clk 0:00:57]} 23. Rg2 {[%clk 0:00:30]}  Be7 {[%clk 0:00:41]} 24. Ng5 {[%clk 0:00:18]}  Bxg5 {[%clk 0:00:26]} 25. Qxg5 {[%clk 0:00:18]}  Nxd4 {[%clk 0:00:27]} 26. Qd2 {[%clk 0:00:18]}  Qg4 {[%clk 0:00:18]} 27. h3 {[%clk 0:00:13]}  Qxh3 {[%clk 0:00:05]} 28. Qxd4 {[%clk 0:00:13]}  Qh1+ {[%clk 0:00:05]} 29. Rg1 {[%clk 0:00:13]}  Qh3+ {[%clk 0:00:05]} 30. Rg2 {[%clk 0:00:11]}  Qh1+ {[%clk 0:00:06]} 31. Rg1 {[%clk 0:00:11]}  Qf3 {[%clk 0:00:04]} 32. Re2 {[%clk 0:00:08]}  c6 {[%clk 0:00:02]} 33. Qe4 {[%clk 0:00:07]}  Qf6 {[%clk 0:00:02]} 34. Kg2 {[%clk 0:00:08]}  Nc3 {[%clk 0:00:02]} 35. Qd3 {[%clk 0:00:06]}  Nxe2 {[%clk 0:00:02]} 36. Qxe2 {[%clk 0:00:07]}  b6 {[%clk 0:00:02]} 37. Rf1 {[%clk 0:00:07]}  Qd6 {[%clk 0:00:02]} 38. Bg1 {[%clk 0:00:07]}  Qd5+ {[%clk 0:00:02]} 39. Kh2 {[%clk 0:00:07]}  Rg8 {[%clk 0:00:03]} 40. Qf3 {[%clk 0:00:07]}  Qb5 {[%clk 0:00:03]} 41. Kg2 {[%clk 0:00:07]}  c5 {[%clk 0:00:03]} 42. Be3 {[%clk 0:00:07]}  h6 {[%clk 0:00:03]} 43. Rf2 {[%clk 0:00:07]}  Kh7 {[%clk 0:00:04]} 44. Bc1 {[%clk 0:00:07]}  Qa5 {[%clk 0:00:03]} 45. Bb2 {[%clk 0:00:06]}  Qb4 {[%clk 0:00:03]} 46. Qf7 {[%clk 0:00:04]}  b5 {[%clk 0:00:03]} 47. Qd5 {[%clk 0:00:04]}  c4 {[%clk 0:00:03]} 48. bxc4 {[%clk 0:00:03]}  bxc4 {[%clk 0:00:04]} 49. Qd4 {[%clk 0:00:04]}  a5 {[%clk 0:00:04]} 50. Bc3 {[%clk 0:00:04]}  Qb7+ {[%clk 0:00:04]} 51. Kh2 {[%clk 0:00:04]}  Qa6 {[%clk 0:00:04]} 52. Rf7 {[%clk 0:00:04]} 1-0


[Site "https://www.chess.com"]

[Event "Titled Tuesday Blitz August 17 2021"]
[White "McBryde, Lamel"]
[Black "Prraneeth Vuppala"]
[WhiteFideId "2058596"]
[BlackFideId "46622373"]
[WhiteElo "2136"]
[BlackElo "1759"]
[Result "0-1"]
[Round "05"]
[TimeControl "180+1"]
[Date "2021.08.18"]
[WhiteClock "0:00:04"]
[BlackClock "0:00:53"]

1. Nf3 {[%clk 0:02:57]}  d5 {[%clk 0:02:59]} 2. b3 {[%clk 0:02:57]}  Bg4 {[%clk 0:02:54]} 3. Bb2 {[%clk 0:02:56]}  Bxf3 {[%clk 0:02:50]} 4. exf3 {[%clk 0:02:57]}  e6 {[%clk 0:02:46]} 5. d4 {[%clk 0:02:53]}  Nf6 {[%clk 0:02:45]} 6. Bd3 {[%clk 0:02:54]}  g6 {[%clk 0:02:44]} 7. O-O {[%clk 0:02:54]}  Bg7 {[%clk 0:02:44]} 8. Nd2 {[%clk 0:02:51]}  O-O {[%clk 0:02:42]} 9. Qe2 {[%clk 0:02:41]}  Nc6 {[%clk 0:02:41]} 10. c3 {[%clk 0:02:34]}  Ne7 {[%clk 0:02:41]} 11. Ba3 {[%clk 0:02:23]}  Re8 {[%clk 0:02:40]} 12. Bxe7 {[%clk 0:02:22]}  Qxe7 {[%clk 0:02:39]} 13. f4 {[%clk 0:02:20]}  c5 {[%clk 0:02:39]} 14. Nf3 {[%clk 0:02:19]}  Nd7 {[%clk 0:02:39]} 15. Ne5 {[%clk 0:02:18]}  Rac8 {[%clk 0:02:38]} 16. Rac1 {[%clk 0:02:16]}  Nxe5 {[%clk 0:02:28]} 17. dxe5 {[%clk 0:02:11]}  a6 {[%clk 0:02:20]} 18. c4 {[%clk 0:02:09]}  d4 {[%clk 0:02:19]} 19. Be4 {[%clk 0:02:09]}  Red8 {[%clk 0:02:14]} 20. Qf3 {[%clk 0:02:08]}  Rc7 {[%clk 0:02:13]} 21. Rfe1 {[%clk 0:02:04]}  b5 {[%clk 0:02:10]} 22. Bd3 {[%clk 0:01:20]}  b4 {[%clk 0:02:07]} 23. a3 {[%clk 0:01:18]}  bxa3 {[%clk 0:02:05]} 24. Ra1 {[%clk 0:01:18]}  Rb8 {[%clk 0:02:03]} 25. Rxa3 {[%clk 0:01:17]}  Rcb7 {[%clk 0:02:00]} 26. Be4 {[%clk 0:01:13]}  Rb6 {[%clk 0:01:55]} 27. Rea1 {[%clk 0:01:13]}  f5 {[%clk 0:01:44]} 28. Bc2 {[%clk 0:00:59]}  g5 {[%clk 0:01:31]} 29. g3 {[%clk 0:00:47]}  gxf4 {[%clk 0:01:25]} 30. gxf4 {[%clk 0:00:48]}  Kh8 {[%clk 0:01:14]} 31. Kh1 {[%clk 0:00:46]}  Rg8 {[%clk 0:01:12]} 32. Rxa6 {[%clk 0:00:41]}  Rxa6 {[%clk 0:01:08]} 33. Rxa6 {[%clk 0:00:41]}  Bh6 {[%clk 0:01:07]} 34. Ra8 {[%clk 0:00:40]}  Bf8 {[%clk 0:01:03]} 35. Bd1 {[%clk 0:00:26]}  Qg7 {[%clk 0:00:59]} 36. Qg3 {[%clk 0:00:22]}  Qb7+ {[%clk 0:00:55]} 37. Qf3 {[%clk 0:00:14]}  Qb4 {[%clk 0:00:55]} 38. Qe2 {[%clk 0:00:09]}  d3 {[%clk 0:00:54]} 39. Qxd3 {[%clk 0:00:04]}  Qe1+ {[%clk 0:00:53]} 0-1


[Site "https://www.chess.com"]

[Event "Titled Tuesday Blitz August 17 2021"]
[White "Mekhitarian, Krikor Sevag"]
[Black "Kadam, Om Manish"]
[WhiteFideId "2107660"]
[BlackFideId "45076294"]
[WhiteElo "2598"]
[BlackElo "1729"]
[Result "0-1"]
[Round "05"]
[TimeControl "180+1"]
[Date "2021.08.17"]
[WhiteClock "0:00:05"]
[BlackClock "0:01:47"]

1. c4 {[%clk 0:02:57]}  c5 {[%clk 0:02:57]} 2. Nc3 {[%clk 0:02:56]}  Nc6 {[%clk 0:02:58]} 3. g3 {[%clk 0:02:46]}  g6 {[%clk 0:02:58]} 4. Bg2 {[%clk 0:02:45]}  Bg7 {[%clk 0:02:58]} 5. Nf3 {[%clk 0:02:34]}  e5 {[%clk 0:02:58]} 6. O-O {[%clk 0:02:32]}  Nge7 {[%clk 0:02:58]} 7. Ne1 {[%clk 0:02:31]}  O-O {[%clk 0:02:58]} 8. Nc2 {[%clk 0:02:31]}  d6 {[%clk 0:02:56]} 9. Ne3 {[%clk 0:02:30]}  Be6 {[%clk 0:02:56]} 10. Ncd5 {[%clk 0:02:28]}  Qd7 {[%clk 0:02:55]} 11. d3 {[%clk 0:02:27]}  Nd4 {[%clk 0:02:51]} 12. Nxe7+ {[%clk 0:02:24]}  Qxe7 {[%clk 0:02:51]} 13. Nd5 {[%clk 0:02:25]}  Qd7 {[%clk 0:02:52]} 14. e3 {[%clk 0:02:25]}  Nc6 {[%clk 0:02:52]} 15. Rb1 {[%clk 0:02:11]}  Ne7 {[%clk 0:02:49]} 16. Nxe7+ {[%clk 0:01:54]}  Qxe7 {[%clk 0:02:50]} 17. b4 {[%clk 0:01:55]}  Rab8 {[%clk 0:02:32]} 18. bxc5 {[%clk 0:01:38]}  dxc5 {[%clk 0:02:33]} 19. Bd5 {[%clk 0:01:38]}  f5 {[%clk 0:02:27]} 20. e4 {[%clk 0:01:37]}  f4 {[%clk 0:02:26]} 21. Qg4 {[%clk 0:01:21]}  Bxd5 {[%clk 0:02:16]} 22. exd5 {[%clk 0:01:01]}  Qd6 {[%clk 0:02:13]} 23. Re1 {[%clk 0:00:42]}  fxg3 {[%clk 0:02:05]} 24. hxg3 {[%clk 0:00:43]}  b6 {[%clk 0:02:05]} 25. Kg2 {[%clk 0:00:33]}  Rbe8 {[%clk 0:02:04]} 26. Re4 {[%clk 0:00:33]}  Qf6 {[%clk 0:02:03]} 27. Be3 {[%clk 0:00:33]}  Qf5 {[%clk 0:02:00]} 28. a4 {[%clk 0:00:29]}  Rf6 {[%clk 0:01:54]} 29. a5 {[%clk 0:00:27]}  Ref8 {[%clk 0:01:54]} 30. axb6 {[%clk 0:00:23]}  axb6 {[%clk 0:01:55]} 31. Ra1 {[%clk 0:00:21]}  R6f7 {[%clk 0:01:52]} 32. Rb1 {[%clk 0:00:21]}  Rf6 {[%clk 0:01:49]} 33. Qe2 {[%clk 0:00:20]}  Qd7 {[%clk 0:01:49]} 34. Bg5 {[%clk 0:00:18]}  Rxf2+ {[%clk 0:01:46]} 35. Qxf2 {[%clk 0:00:19]}  Rxf2+ {[%clk 0:01:47]} 36. Kxf2 {[%clk 0:00:19]}  Qf5+ {[%clk 0:01:48]} 37. Kg2 {[%clk 0:00:12]}  Qxg5 {[%clk 0:01:48]} 38. Rb2 {[%clk 0:00:12]}  h5 {[%clk 0:01:46]} 39. Kh2 {[%clk 0:00:07]}  Qc1 {[%clk 0:01:45]} 40. Rxb6 {[%clk 0:00:06]}  Qd2+ {[%clk 0:01:45]} 41. Kh3 {[%clk 0:00:05]}  Qxd3 {[%clk 0:01:46]} 42. Rb8+ {[%clk 0:00:05]}  Kh7 {[%clk 0:01:46]} 43. Re1 {[%clk 0:00:05]}  Qxc4 {[%clk 0:01:46]} 44. d6 {[%clk 0:00:05]}  Qe6+ {[%clk 0:01:46]} 45. Kg2 {[%clk 0:00:04]}  Qxd6 {[%clk 0:01:46]} 46. Rb7 {[%clk 0:00:05]}  Qd5+ {[%clk 0:01:47]} 0-1


[Site "https://www.chess.com"]

[Event "Titled Tuesday Blitz August 17 2021"]
[White "Mirzanurov, Bulat"]
[Black "Yeletsky, Ivan"]
[WhiteFideId "4184521"]
[BlackFideId "24180327"]
[WhiteElo "2208"]
[BlackElo "2344"]
[Result "0-1"]
[Round "05"]
[TimeControl "180+1"]
[Date "2021.08.17"]
[WhiteClock "0:02:25"]
[BlackClock "0:02:45"]

1. e4 {[%clk 0:03:00]}  e5 {[%clk 0:02:59]} 2. Nf3 {[%clk 0:02:59]}  Nc6 {[%clk 0:02:59]} 3. Bc4 {[%clk 0:02:59]}  Nf6 {[%clk 0:02:59]} 4. d3 {[%clk 0:02:58]}  Bc5 {[%clk 0:02:59]} 5. c3 {[%clk 0:02:58]}  d6 {[%clk 0:02:59]} 6. O-O {[%clk 0:02:58]}  a6 {[%clk 0:02:59]} 7. Bb3 {[%clk 0:02:57]}  Ba7 {[%clk 0:02:59]} 8. h3 {[%clk 0:02:56]}  h6 {[%clk 0:02:59]} 9. Re1 {[%clk 0:02:53]}  g5 {[%clk 0:03:00]} 10. d4 {[%clk 0:02:53]}  g4 {[%clk 0:02:58]} 11. hxg4 {[%clk 0:02:50]}  Nxg4 {[%clk 0:02:59]} 12. dxe5 {[%clk 0:02:42]}  Nxf2 {[%clk 0:02:47]} 13. Qe2 {[%clk 0:02:29]}  Ng4+ {[%clk 0:02:46]} 14. Kh1 {[%clk 0:02:27]}  Ncxe5 {[%clk 0:02:46]} 15. Nxe5 {[%clk 0:02:25]}  Qh4# {[%clk 0:02:45]} 0-1


[Site "https://www.chess.com"]

[Event "Titled Tuesday Blitz August 17 2021"]
[White "Nayem, Haque"]
[Black "Costachi, Mihnea"]
[WhiteFideId "10217754"]
[BlackFideId "1217518"]
[WhiteElo "1982"]
[BlackElo "2482"]
[Result "0-1"]
[Round "05"]
[TimeControl "180+1"]
[Date "2021.08.17"]
[WhiteClock "0:01:33"]
[BlackClock "0:01:47"]

1. d4 {[%clk 0:03:00]}  c5 {[%clk 0:02:58]} 2. c3 {[%clk 0:02:58]}  Nf6 {[%clk 0:02:56]} 3. Nf3 {[%clk 0:02:57]}  cxd4 {[%clk 0:02:56]} 4. cxd4 {[%clk 0:02:57]}  d5 {[%clk 0:02:57]} 5. g3 {[%clk 0:02:57]}  Nc6 {[%clk 0:02:58]} 6. Bg2 {[%clk 0:02:57]}  Bf5 {[%clk 0:02:58]} 7. Nc3 {[%clk 0:02:57]}  e6 {[%clk 0:02:59]} 8. O-O {[%clk 0:02:56]}  h6 {[%clk 0:02:59]} 9. a3 {[%clk 0:02:56]}  Bd6 {[%clk 0:02:59]} 10. e3 {[%clk 0:02:56]}  O-O {[%clk 0:02:57]} 11. b4 {[%clk 0:02:55]}  Rc8 {[%clk 0:02:51]} 12. Bb2 {[%clk 0:02:55]}  Ne4 {[%clk 0:02:51]} 13. Rc1 {[%clk 0:02:49]}  a5 {[%clk 0:02:48]} 14. b5 {[%clk 0:02:48]}  Nb8 {[%clk 0:02:47]} 15. Qa4 {[%clk 0:02:45]}  Nd7 {[%clk 0:02:44]} 16. Nh4 {[%clk 0:02:31]}  Rc4 {[%clk 0:02:38]} 17. Qd1 {[%clk 0:02:26]}  Nxc3 {[%clk 0:02:36]} 18. Rxc3 {[%clk 0:02:25]}  Rxc3 {[%clk 0:02:34]} 19. Bxc3 {[%clk 0:02:24]}  Bh7 {[%clk 0:02:34]} 20. Qd2 {[%clk 0:02:22]}  b6 {[%clk 0:02:30]} 21. Rc1 {[%clk 0:02:19]}  Bxa3 {[%clk 0:02:29]} 22. Bb2 {[%clk 0:02:16]}  Bb4 {[%clk 0:02:28]} 23. Bc3 {[%clk 0:02:16]}  Bd6 {[%clk 0:02:28]} 24. Bb2 {[%clk 0:02:11]}  Qb8 {[%clk 0:02:28]} 25. Rc6 {[%clk 0:02:09]}  Rc8 {[%clk 0:02:22]} 26. Qc1 {[%clk 0:02:09]}  Rxc6 {[%clk 0:02:22]} 27. bxc6 {[%clk 0:02:08]}  Qc7 {[%clk 0:02:22]} 28. cxd7 {[%clk 0:02:06]}  Qxd7 {[%clk 0:02:23]} 29. Nf3 {[%clk 0:01:58]}  f6 {[%clk 0:02:17]} 30. Nd2 {[%clk 0:01:54]}  b5 {[%clk 0:02:17]} 31. e4 {[%clk 0:01:53]}  dxe4 {[%clk 0:02:13]} 32. Nxe4 {[%clk 0:01:52]}  Bxe4 {[%clk 0:02:06]} 33. Bxe4 {[%clk 0:01:52]}  a4 {[%clk 0:02:06]} 34. Bc6 {[%clk 0:01:49]}  Qa7 {[%clk 0:02:04]} 35. Bxb5 {[%clk 0:01:48]}  a3 {[%clk 0:02:05]} 36. Ba1 {[%clk 0:01:47]}  Qa5 {[%clk 0:02:00]} 37. Bc4 {[%clk 0:01:45]}  Kf7 {[%clk 0:01:56]} 38. Qe3 {[%clk 0:01:41]}  Qf5 {[%clk 0:01:53]} 39. Kg2 {[%clk 0:01:37]}  h5 {[%clk 0:01:52]} 40. h4 {[%clk 0:01:37]}  g6 {[%clk 0:01:50]} 41. Qb3 {[%clk 0:01:36]}  Qe4+ {[%clk 0:01:49]} 42. Qf3 {[%clk 0:01:35]}  Qb1 {[%clk 0:01:49]} 43. Qb7+ {[%clk 0:01:33]}  Qxb7+ {[%clk 0:01:47]} 0-1


[Site "https://www.chess.com"]

[Event "Titled Tuesday Blitz August 17 2021"]
[White "Nguyen, Hong Anh"]
[Black "Nemeth Junior, Henrique"]
[WhiteFideId "12406732"]
[BlackFideId "2118815"]
[WhiteElo "1974"]
[BlackElo "1976"]
[Result "0-1"]
[Round "05"]
[TimeControl "180+1"]
[Date "2021.08.18"]
[WhiteClock "0:00:00"]
[BlackClock "0:00:16"]

1. d4 {[%clk 0:02:58]}  Nf6 {[%clk 0:02:58]} 2. c4 {[%clk 0:02:58]}  c5 {[%clk 0:02:58]} 3. Nf3 {[%clk 0:02:59]}  e6 {[%clk 0:02:58]} 4. g3 {[%clk 0:02:58]}  a6 {[%clk 0:02:53]} 5. Bg2 {[%clk 0:02:57]}  cxd4 {[%clk 0:02:54]} 6. Nxd4 {[%clk 0:02:48]}  Qc7 {[%clk 0:02:55]} 7. b3 {[%clk 0:02:47]}  Be7 {[%clk 0:02:50]} 8. O-O {[%clk 0:02:47]}  Nc6 {[%clk 0:02:45]} 9. Bb2 {[%clk 0:02:47]}  b6 {[%clk 0:02:41]} 10. Nxc6 {[%clk 0:02:35]}  dxc6 {[%clk 0:02:42]} 11. Nd2 {[%clk 0:02:35]}  Bb7 {[%clk 0:02:39]} 12. Nf3 {[%clk 0:02:35]}  c5 {[%clk 0:02:34]} 13. Be5 {[%clk 0:02:34]}  Qc8 {[%clk 0:02:29]} 14. Qc2 {[%clk 0:02:31]}  O-O {[%clk 0:02:29]} 15. Rad1 {[%clk 0:02:29]}  Rd8 {[%clk 0:02:24]} 16. Rxd8+ {[%clk 0:02:25]}  Bxd8 {[%clk 0:02:18]} 17. Rd1 {[%clk 0:02:24]}  Bc7 {[%clk 0:02:05]} 18. Bxf6 {[%clk 0:02:15]}  gxf6 {[%clk 0:02:06]} 19. Qc3 {[%clk 0:02:14]}  Kg7 {[%clk 0:01:44]} 20. Qe3 {[%clk 0:01:43]}  Qe8 {[%clk 0:01:21]} 21. Nh4 {[%clk 0:01:33]}  Bxg2 {[%clk 0:01:20]} 22. Nxg2 {[%clk 0:01:32]}  Rd8 {[%clk 0:01:20]} 23. Rf1 {[%clk 0:01:18]}  Rd4 {[%clk 0:01:15]} 24. Nh4 {[%clk 0:01:07]}  Qd7 {[%clk 0:01:09]} 25. Nf3 {[%clk 0:01:05]}  Rd1 {[%clk 0:01:06]} 26. Qe4 {[%clk 0:01:02]}  f5 {[%clk 0:01:04]} 27. Qc2 {[%clk 0:00:54]}  Rxf1+ {[%clk 0:01:01]} 28. Kxf1 {[%clk 0:00:49]}  Bd8 {[%clk 0:01:02]} 29. Qd3 {[%clk 0:00:43]}  Qxd3 {[%clk 0:00:58]} 30. exd3 {[%clk 0:00:43]}  Bf6 {[%clk 0:00:58]} 31. Ke2 {[%clk 0:00:43]}  Kf8 {[%clk 0:00:53]} 32. Ne1 {[%clk 0:00:41]}  Ke7 {[%clk 0:00:53]} 33. Ng2 {[%clk 0:00:40]}  e5 {[%clk 0:00:50]} 34. Ne3 {[%clk 0:00:38]}  Ke6 {[%clk 0:00:48]} 35. Nd5 {[%clk 0:00:38]}  Bd8 {[%clk 0:00:49]} 36. Ke3 {[%clk 0:00:38]}  h5 {[%clk 0:00:44]} 37. h4 {[%clk 0:00:36]}  b5 {[%clk 0:00:42]} 38. f4 {[%clk 0:00:34]}  f6 {[%clk 0:00:42]} 39. Kf3 {[%clk 0:00:33]}  Ba5 {[%clk 0:00:39]} 40. a3 {[%clk 0:00:29]}  bxc4 {[%clk 0:00:31]} 41. dxc4 {[%clk 0:00:29]}  e4+ {[%clk 0:00:29]} 42. Ke2 {[%clk 0:00:27]}  Bd8 {[%clk 0:00:24]} 43. Ne3 {[%clk 0:00:26]}  Ba5 {[%clk 0:00:24]} 44. Nc2 {[%clk 0:00:25]}  Bc3 {[%clk 0:00:24]} 45. Ne3 {[%clk 0:00:25]}  Bd4 {[%clk 0:00:23]} 46. Nd5 {[%clk 0:00:25]}  Kd6 {[%clk 0:00:22]} 47. b4 {[%clk 0:00:24]}  Kc6 {[%clk 0:00:20]} 48. Ne7+ {[%clk 0:00:24]}  Kb6 {[%clk 0:00:17]} 49. Nxf5 {[%clk 0:00:24]}  Bb2 {[%clk 0:00:18]} 50. bxc5+ {[%clk 0:00:23]}  Kxc5 {[%clk 0:00:19]} 51. Ng7 {[%clk 0:00:22]}  Kxc4 {[%clk 0:00:19]} 52. Nxh5 {[%clk 0:00:22]}  Bxa3 {[%clk 0:00:20]} 53. Nxf6 {[%clk 0:00:23]}  Kd4 {[%clk 0:00:19]} 54. h5 {[%clk 0:00:23]}  Bf8 {[%clk 0:00:20]} 55. Ng8 {[%clk 0:00:22]}  a5 {[%clk 0:00:20]} 56. h6 {[%clk 0:00:19]}  a4 {[%clk 0:00:21]} 57. Kd1 {[%clk 0:00:16]}  Ke3 {[%clk 0:00:16]} 58. h7 {[%clk 0:00:16]}  Bg7 {[%clk 0:00:16]} 59. Ne7 {[%clk 0:00:16]}  a3 {[%clk 0:00:16]} 60. Nf5+ {[%clk 0:00:15]}  Kf3 {[%clk 0:00:15]} 61. Nxg7 {[%clk 0:00:14]}  e3 {[%clk 0:00:15]} 62. h8=Q {[%clk 0:00:00]}  e2+ {[%clk 0:00:16]} 0-1


[Site "https://www.chess.com"]

[Event "Titled Tuesday Blitz August 17 2021"]
[White "Paravyan, David"]
[Black "Svane, Rasmus"]
[WhiteFideId "4194985"]
[BlackFideId "4657101"]
[WhiteElo "2562"]
[BlackElo "2669"]
[Result "1-0"]
[Round "05"]
[TimeControl "180+1"]
[Date "2021.08.17"]
[WhiteClock "0:01:39"]
[BlackClock "0:00:03"]

1. e4 {[%clk 0:03:00]}  e5 {[%clk 0:02:59]} 2. Nf3 {[%clk 0:03:00]}  Nc6 {[%clk 0:02:59]} 3. Nc3 {[%clk 0:03:01]}  Nf6 {[%clk 0:02:59]} 4. d4 {[%clk 0:03:01]}  exd4 {[%clk 0:02:58]} 5. Nxd4 {[%clk 0:03:02]}  Bb4 {[%clk 0:02:58]} 6. Nxc6 {[%clk 0:03:03]}  bxc6 {[%clk 0:02:59]} 7. Bd3 {[%clk 0:03:03]}  O-O {[%clk 0:02:59]} 8. O-O {[%clk 0:03:04]}  d5 {[%clk 0:02:59]} 9. exd5 {[%clk 0:03:05]}  cxd5 {[%clk 0:02:58]} 10. h3 {[%clk 0:03:05]}  Be6 {[%clk 0:02:56]} 11. a3 {[%clk 0:03:01]}  Bd6 {[%clk 0:02:42]} 12. Nb5 {[%clk 0:03:01]}  Bc5 {[%clk 0:01:56]} 13. b4 {[%clk 0:02:56]}  Bb6 {[%clk 0:01:55]} 14. Bb2 {[%clk 0:02:57]}  c5 {[%clk 0:01:47]} 15. bxc5 {[%clk 0:02:55]}  Bxc5 {[%clk 0:01:48]} 16. Bd4 {[%clk 0:02:53]}  Qe7 {[%clk 0:01:42]} 17. Re1 {[%clk 0:02:48]}  a6 {[%clk 0:01:39]} 18. Bxc5 {[%clk 0:02:39]}  Qxc5 {[%clk 0:01:40]} 19. Nd4 {[%clk 0:02:39]}  Bd7 {[%clk 0:01:40]} 20. Qd2 {[%clk 0:02:38]}  Bb5 {[%clk 0:01:29]} 21. Qb4 {[%clk 0:02:32]}  Qxb4 {[%clk 0:01:23]} 22. axb4 {[%clk 0:02:33]}  Bxd3 {[%clk 0:01:23]} 23. cxd3 {[%clk 0:02:34]}  Rfb8 {[%clk 0:01:24]} 24. Ra4 {[%clk 0:02:33]}  g6 {[%clk 0:01:01]} 25. Rea1 {[%clk 0:02:32]}  Nd7 {[%clk 0:00:50]} 26. b5 {[%clk 0:02:28]}  Nc5 {[%clk 0:00:49]} 27. R4a3 {[%clk 0:02:26]}  Rb6 {[%clk 0:00:43]} 28. Rc1 {[%clk 0:02:23]}  Ne6 {[%clk 0:00:42]} 29. Rc6 {[%clk 0:02:22]}  Rxc6 {[%clk 0:00:26]} 30. Nxc6 {[%clk 0:02:23]}  Kf8 {[%clk 0:00:10]} 31. Rxa6 {[%clk 0:01:41]}  Rxa6 {[%clk 0:00:06]} 32. bxa6 {[%clk 0:01:42]}  Ke8 {[%clk 0:00:06]} 33. Nb4 {[%clk 0:01:40]}  Nc7 {[%clk 0:00:04]} 34. a7 {[%clk 0:01:40]}  d4 {[%clk 0:00:03]} 35. Nc6 {[%clk 0:01:39]}  Kd7 {[%clk 0:00:03]} 36. Nxd4 {[%clk 0:01:39]}  Kc8 {[%clk 0:00:03]} 37. Nb5 {[%clk 0:01:38]}  Na8 {[%clk 0:00:03]} 38. Nd6+ {[%clk 0:01:39]}  Kc7 {[%clk 0:00:03]} 39. Nxf7 {[%clk 0:01:40]}  Kb6 {[%clk 0:00:04]} 40. Ng5 {[%clk 0:01:39]}  h5 {[%clk 0:00:04]} 41. Ne6 {[%clk 0:01:38]}  Kxa7 {[%clk 0:00:03]} 42. Nf4 {[%clk 0:01:39]} 1-0


[Site "https://www.chess.com"]

[Event "Titled Tuesday Blitz August 17 2021"]
[White "Patrascu, Catalin-Lucian"]
[Black "Garriga Cazorla, Pere"]
[WhiteFideId "1229052"]
[BlackFideId "32011601"]
[WhiteElo "2120"]
[BlackElo "2430"]
[Result "0-1"]
[Round "05"]
[TimeControl "180+1"]
[Date "2021.08.17"]
[WhiteClock "0:00:02"]
[BlackClock "0:00:15"]

1. e4 {[%clk 0:03:00]}  c5 {[%clk 0:02:59]} 2. Nf3 {[%clk 0:03:00]}  Nc6 {[%clk 0:02:59]} 3. d4 {[%clk 0:03:01]}  cxd4 {[%clk 0:03:00]} 4. Nxd4 {[%clk 0:03:02]}  Qb6 {[%clk 0:03:00]} 5. Nf3 {[%clk 0:02:58]}  Nf6 {[%clk 0:03:00]} 6. Bd3 {[%clk 0:02:58]}  e6 {[%clk 0:02:58]} 7. O-O {[%clk 0:02:57]}  d6 {[%clk 0:02:58]} 8. Nbd2 {[%clk 0:02:57]}  Qc7 {[%clk 0:02:57]} 9. Nc4 {[%clk 0:02:53]}  a6 {[%clk 0:02:58]} 10. Bg5 {[%clk 0:02:50]}  Be7 {[%clk 0:02:57]} 11. a4 {[%clk 0:02:30]}  b6 {[%clk 0:02:57]} 12. Qe2 {[%clk 0:02:23]}  O-O {[%clk 0:02:52]} 13. Rad1 {[%clk 0:02:15]}  Bb7 {[%clk 0:02:45]} 14. e5 {[%clk 0:01:48]}  dxe5 {[%clk 0:02:44]} 15. Ncxe5 {[%clk 0:01:47]}  Nb4 {[%clk 0:02:20]} 16. c3 {[%clk 0:01:17]}  Nxd3 {[%clk 0:02:20]} 17. Rxd3 {[%clk 0:01:17]}  Rad8 {[%clk 0:02:18]} 18. Rfd1 {[%clk 0:01:16]}  Rxd3 {[%clk 0:02:12]} 19. Rxd3 {[%clk 0:01:15]}  Rd8 {[%clk 0:01:49]} 20. h3 {[%clk 0:01:10]}  h6 {[%clk 0:01:38]} 21. Bc1 {[%clk 0:00:53]}  Rxd3 {[%clk 0:01:18]} 22. Qxd3 {[%clk 0:00:52]}  Ne4 {[%clk 0:01:12]} 23. Be3 {[%clk 0:00:46]}  Nc5 {[%clk 0:00:55]} 24. Bxc5 {[%clk 0:00:32]}  Bxc5 {[%clk 0:00:53]} 25. Qd7 {[%clk 0:00:24]}  Bd6 {[%clk 0:00:20]} 26. Qe8+ {[%clk 0:00:23]}  Bf8 {[%clk 0:00:20]} 27. b4 {[%clk 0:00:14]}  a5 {[%clk 0:00:15]} 28. bxa5 {[%clk 0:00:12]}  bxa5 {[%clk 0:00:16]} 29. Qb5 {[%clk 0:00:08]}  Bd5 {[%clk 0:00:15]} 30. c4 {[%clk 0:00:08]}  Be4 {[%clk 0:00:15]} 31. Nd4 {[%clk 0:00:05]}  Qc5 {[%clk 0:00:15]} 32. Qxc5 {[%clk 0:00:04]}  Bxc5 {[%clk 0:00:16]} 33. Nb3 {[%clk 0:00:04]}  Bb4 {[%clk 0:00:16]} 34. c5 {[%clk 0:00:03]}  f6 {[%clk 0:00:16]} 35. Nc4 {[%clk 0:00:02]}  Bd5 {[%clk 0:00:15]} 36. Ncxa5 {[%clk 0:00:02]}  Kf7 {[%clk 0:00:15]} 37. c6 {[%clk 0:00:02]}  Ke7 {[%clk 0:00:15]} 38. c7 {[%clk 0:00:02]}  Kd7 {[%clk 0:00:15]} 0-1


[Site "https://www.chess.com"]